lending/lending_fUSD_20240124
["ID","MTS","AMOUNT","RATE_DAILY","PERIOD"]
[312607471,1706070632201,-324.0,0.00021134,2]
[312607472,1706070632211,-210.0,0.00021141,2]
[312607473,1706070632220,-292.26,0.00021211,2]
[312607474,1706070632230,-1085.31,0.0002133,2]
[312607475,1706070632239,-160.50007317,0.00021371,2]
[312607476,1706070632249,-154.47,0.00021471,2]
[312607477,1706070632259,-160.50007311,0.0002148,2]
[312607478,1706070632268,-160.89,0.00021533,2]
[312607479,1706070632279,-228.85160586,0.00021548,2]
[312607480,1706070632288,-576.27,0.00021566,2]
[312607481,1706070632297,-160.50007311,0.00021589,2]
[312607482,1706070632307,-150.0,0.00021616,2]
[312607483,1706070632316,-428.58,0.00021617,2]
[312607484,1706070632326,-4436.26,0.00021617,2]
[312607485,1706070632335,-7689.24,0.00021617,2]
[312607486,1706070632346,-571.42,0.00021633,2]
[312607487,1706070632355,-213.57,0.00021644,2]
[312607488,1706070632365,-160.50007311,0.00021699,2]
[312607489,1706070632375,-170.23,0.00021713,2]
[312607490,1706070632384,-154.47,0.00021751,2]
[312607491,1706070632396,-160.50007311,0.00021808,2]
[312607492,1706070632406,-341.36,0.00021873,2]
[312607493,1706070632416,-160.50007311,0.00021917,2]
[312607494,1706070632427,-250.0,0.00021918,2]
[312607495,1706070632436,-176.5,0.00022,2]
[312607496,1706070632446,-154.47,0.00022031,2]
[312607497,1706070632455,-154.47,0.00022311,2]
[312607498,1706070632465,-191.90474463,0.00022497,2]
[312607499,1706070632475,-597.48018043,0.00022498,2]
[312607500,1706070632485,-941.894,0.00022499,2]
[312607501,1706070632494,-44502.1537,0.00022499,2]
[312607503,1706070632504,-500.0,0.000225,2]
[312607505,1706070632514,-164312.08722591,0.00022542,2]
[312607507,1706070632526,-1705.90980672,0.00022542,2]
[312607508,1706070632554,-1268.22431973,0.00022542,2]
[312607509,1706070632565,-469.13636334,0.00022542,2]
[312607510,1706070632577,-363.36373079,0.00022542,2]
[312607511,1706070632600,-450.037073,0.00022542,2]
[312607512,1706070632679,-1183.06651048,0.00022542,2]
[312607513,1706070632762,-2600.98465327,0.00022542,2]
[312607514,1706070632773,-1186.83409097,0.00022542,2]
[312607515,1706070632793,-1067.034,0.00022542,2]
[312607516,1706070632804,-885.4525,0.00022542,2]
[312607517,1706070632815,-938.959998,0.00022542,2]
[312607518,1706070632826,-1922.86375946,0.00022542,2]
[312607519,1706070632837,-20335.40683352,0.00022542,2]
[312607520,1706070632850,-22392.44293825,0.00022542,2]
[312607521,1706070632861,-572.78766273,0.00022542,2]
[312607522,1706070632873,-1766.89073922,0.00022542,2]
[312607523,1706070632903,-5350.36877891,0.00022542,2]
[312607524,1706070632915,-599.51586882,0.00022542,2]
[312607525,1706070632927,-893.71670212,0.00022542,2]
[312607526,1706070632954,-10698.95237026,0.00022542,2]
[312607541,1706070638846,-473.80661658,0.0002113,2]
[312607542,1706070638855,-2000.0,0.00022,2]
[312607543,1706070638865,-2000.0,0.00022,2]
[312607544,1706070638874,-24735.9640745,0.00022542,2]
[312607545,1706070638884,-352.58,0.00022548,2]
[312607546,1706070638893,-154.47,0.0002259,2]
[312607547,1706070638902,-576.27,0.00022644,2]
[312607548,1706070638911,-313.0106,0.0002267,2]
[312607549,1706070638920,-500.0,0.00022816,2]
[312607550,1706070638929,-200.0,0.00022816,2]
[312607551,1706070638939,-800.0,0.00022816,2]
[312607552,1706070638948,-200.0,0.00022816,2]
[312607553,1706070638958,-209.0,0.000229,2]
[312607554,1706070638967,-22747.16039873,0.000229,2]
[312607555,1706070638979,-18580.75170127,0.000229,2]
[312607556,1706070638988,-10457.25,0.000229,2]
[312607557,1706070638997,-151.58963702,0.000229,2]
[312607558,1706070639006,-5137.28790607,0.000229,2]
[312607559,1706070639015,-178.03401369,0.000229,2]
[312607560,1706070639024,-484.8905578,0.000229,2]
[312607561,1706070639033,-220.1434143,0.000229,2]
[312607562,1706070639042,-1037.0,0.000229,2]
[312607563,1706070639051,-4318.03528377,0.000229,2]
[312607564,1706070639060,-171.01455328,0.000229,2]
[312607565,1706070639069,-1369.67607576,0.000229,2]
[312607566,1706070639079,-1085.31,0.00022974,2]
[312607567,1706070639088,-168.41380749,0.0002299,2]
[312607568,1706070639097,-418.44153932,0.00022998,2]
[312607569,1706070639107,-654.01644442,0.00022998,2]
[312607570,1706070639116,-204.73056274,0.00022998,2]
[312607571,1706070639126,-361.45556358,0.00022998,2]
[312607572,1706070639135,-823.9475341,0.00022998,2]
[312607573,1706070639144,-526.67084155,0.00022998,2]
[312607574,1706070639153,-208.07744816,0.00022998,2]
[312607575,1706070639162,-350.40014699,0.00022998,2]
[312607576,1706070639172,-244.89196865,0.00022998,2]
[312607577,1706070639181,-1164.47108904,0.00022998,2]
[312607578,1706070639192,-19017.52901065,0.00022999,2]
[312607579,1706070639202,-218.84299371,0.00022999,2]
[312607580,1706070639213,-158.49739556,0.00022999,2]
[312607581,1706070639222,-150.0,0.00022999,2]
[312607582,1706070639231,-534.0,0.00023,2]
[312607584,1706070639241,-57691.59747996,0.00023,2]
[312607586,1706070639253,-45583.02224794,0.00023,2]
[312607587,1706070639264,-450.32550937,0.00023,2]
[312607588,1706070639310,-819.91015716,0.00023,2]
[312607589,1706070639322,-8124.78407128,0.00023,2]
[312607590,1706070639400,-285.49172499,0.00023,2]
[312607591,1706070640644,-38661.68247089,0.00023,2]
[312607592,1706070640656,-788.96681402,0.00023,2]
[312607593,1706070640703,-624.5037373,0.00023,2]
[312607594,1706070640716,-713.16322836,0.00023,2]
[312607595,1706070640766,-2886.47752405,0.00023,2]
[312607596,1706070640829,-485.2725581,0.00023,2]
[312607597,1706070640840,-877.16886363,0.00023,2]
[312607598,1706070640896,-1475.12240308,0.00023,2]
[312607599,1706070641501,-1698.52317393,0.00023,2]
[312607600,1706070643195,-218.84299371,0.00022999,2]
[312607601,1706070643211,-789.44388191,0.00023,2]
[312607602,1706070643222,-495.13548268,0.00023,2]
[312607603,1706070643274,-459.52724864,0.00023,2]
[312607604,1706070643287,-783.10397591,0.00023,2]
[312607605,1706070643435,-2017.27286962,0.00023,2]
[312607606,1706070643447,-12291.94301803,0.00023,2]
[312607607,1706070643467,-40330.21655214,0.00023,2]
[312607608,1706070643483,-871.23723563,0.00023,2]
[312607609,1706070643500,-1470.26762691,0.00023,2]
[312607610,1706070643512,-392.29490377,0.00023,2]
[312607616,1706070646225,-433.77264747,0.00022,2]
[312607617,1706070646280,-382.51727014,0.00022,2]
[312607618,1706070646293,-800.0,0.00022,2]
[312607619,1706070646305,-383.71008239,0.00022,2]
[312607620,1706070646315,-155.0,0.00022999,2]
[312607621,1706070646325,-1000.0,0.00022999,2]
[312607622,1706070646335,-1123.78349927,0.00023,2]
[312607623,1706070646507,-9403.56105854,0.00023,2]
[312607628,1706070719040,355.39,0.00020558,2]
[312607632,1706070754152,210.0,0.00020141,2]
[312607633,1706070785005,17100.32634583,0.000302,120]
[312607674,1706071143887,337.62,0.00019488,2]
[312607678,1706071523993,155.0,0.00021003,2]
[312607679,1706071547280,1000.0,0.00021003,2]
[312607680,1706071600769,320.73,0.0001939,2]
[312607716,1706071833770,-1000.0,0.00021138,2]
[312607717,1706071833780,-1190.22572218,0.00021139,2]
[312607718,1706071833791,-1053.42704108,0.00021139,2]
[312607719,1706071833803,-812.51566933,0.00021139,2]
[312607720,1706071833813,-160.50007311,0.0002116,2]
[312607721,1706071833822,-292.41440816,0.00021194,2]
[312607722,1706071833834,-2350.0,0.00021194,2]
[312607723,1706071833846,-1914.08259184,0.00021194,2]
[312607724,1706071833855,-150.0,0.0002126,2]
[312607725,1706071833865,-589.98,0.00021274,2]
[312607726,1706071833875,-913.08,0.00021275,2]
[312607727,1706071833884,-325.97,0.00021294,2]
[312607728,1706071833893,-500.0,0.00021294,2]
[312607729,1706071833903,-657.13,0.00021301,2]
[312607730,1706071833912,-150.0,0.00021325,2]
[312607731,1706071833921,-160.50007311,0.00021378,2]
[312607732,1706071833930,-244.23,0.00021385,2]
[312607733,1706071833940,-150.0,0.00021463,2]
[312607734,1706071833949,-150.0,0.00021463,2]
[312607735,1706071833958,-150.99,0.00021463,2]
[312607736,1706071833967,-857.07,0.00021464,2]
[312607737,1706071833976,-461.73,0.00021504,2]
[312607738,1706071833985,-173.88,0.0002151,2]
[312607739,1706071833994,-210.0,0.00021569,2]
[312607740,1706071834003,-160.50007311,0.00021595,2]
[312607741,1706071834012,-320.73,0.00021654,2]
[312607742,1706071834241,-342.87,0.00021704,2]
[312607743,1706071834258,-173.88,0.00021734,2]
[312607744,1706071834267,-160.50007311,0.00021813,2]
[312607745,1706071834276,-155.67039259,0.00021848,2]
[312607746,1706071834286,-420.5726,0.00021848,2]
[312607747,1706071834295,-250.0,0.00021918,2]
[312607748,1706071834304,-173.88,0.00021959,2]
[312607749,1706071834313,-176.5,0.00022,2]
[312607750,1706071834322,-160.50007311,0.0002203,2]
[312607751,1706071834331,-621.30038601,0.00022078,2]
[312607752,1706071834357,-775.01446521,0.00022078,2]
[312607753,1706071834366,-72.35488157,0.00022078,2]
[312607754,1706071834973,-554.75093491,0.00022078,2]
[312607755,1706071834982,-173.88,0.00022183,2]
[312607756,1706071834992,-11.95146616,0.00022248,2]
[312607757,1706071835003,-148.54860695,0.00022248,2]
[312607758,1706071835013,-415.37956093,0.00022338,2]
[312607759,1706071835024,-174.60043907,0.00022338,2]
[312607760,1706071835033,-173.88,0.00022407,2]
[312607761,1706071835043,-413.73831411,0.00022441,2]
[312607762,1706071835055,-1397.97451286,0.00022441,2]
[312607763,1706071835083,-1061.31515615,0.00022441,2]
[312607764,1706071835095,-2824.39421698,0.00022441,2]
[312607765,1706071835318,-582.38722525,0.00022441,2]
[312607769,1706071838307,-10175.56634167,0.00022441,2]
[312607770,1706071838361,-643.08479251,0.00022441,2]
[312607771,1706071838373,-1007.38297438,0.00022441,2]
[312607772,1706071838385,-84.21656968,0.00022441,2]
[312607773,1706071838395,-3558.98411661,0.00022442,2]
[312607774,1706071838417,-14493.89858339,0.00022442,2]
[312607775,1706071838427,-7239.6719,0.00022442,2]
[312607776,1706071838436,-1203.87705051,0.00022454,3]
[312607777,1706071838446,-244.23,0.00022454,2]
[312607778,1706071838455,-160.50007311,0.00022465,2]
[312607779,1706071838465,-315.51254196,0.00022548,2]
[312607780,1706071838474,-835.56626242,0.0002257,2]
[312607781,1706071838483,-5353.645,0.0002257,2]
[312607783,1706071838868,-173.88,0.00022631,2]
[312607784,1706071838877,-9951.44501942,0.0002267,2]
[312607785,1706071838897,-6724.85455948,0.0002267,2]
[312607786,1706071838929,-12579.6977211,0.0002267,2]
[312607787,1706071838938,-160.50007311,0.00022683,2]
[312607788,1706071838953,-5506.31173706,0.0002277,2]
[312607789,1706071838964,-500.0,0.00022816,2]
[312607790,1706071838974,-200.0,0.00022816,2]
[312607791,1706071838983,-800.0,0.00022816,2]
[312607792,1706071838993,-200.0,0.00022816,2]
[312607793,1706071839003,-151.58963698,0.000229,2]
[312607794,1706071839012,-723.9359,0.000229,2]
[312607795,1706071839022,-178.03401367,0.000229,2]
[312607796,1706071839032,-4776.31265476,0.000229,2]
[312607797,1706071839042,-171.01455326,0.000229,2]
[312607798,1706071839052,-160.50007311,0.000229,2]
[312607799,1706071839061,-913.08,0.00022918,2]
[312607800,1706071839071,-315.79886146,0.00022998,2]
[312607801,1706071839080,-299.46080022,0.00022998,2]
[312607802,1706071839092,-105.2362223,0.00022998,2]
[312607803,1706071839102,-210.12282928,0.00022998,2]
[312607804,1706071839111,-181.47713907,0.00022998,2]
[312607805,1706071839120,-247.05184412,0.00022998,2]
[312607806,1706071839130,-2744.41617116,0.00022999,3]
[312607807,1706071839140,-155.0,0.00022999,2]
[312607808,1706071839151,-234.16079522,0.00022999,2]
[312607809,1706071839161,-298.22480867,0.00022999,2]
[312607810,1706071839171,-16860.63371042,0.00022999,2]
[312607811,1706071839180,-209.59719129,0.00022999,2]
[312607812,1706071839190,-7947.86427648,0.00023,2]
[312607813,1706071839218,-944.66841839,0.00023,2]
[312607814,1706071839229,-410.17314583,0.00023,2]
[312607817,1706071840797,-1204.75,0.00023,2]
[312607818,1706071840844,-1798.36029792,0.00023,2]
[312607819,1706071841549,-1792.98406815,0.00023,2]
[312607820,1706071841565,-3276.87080573,0.00023,2]
[312607821,1706071841607,-994.025,0.00023,2]
[312607864,1706071843390,-487.82,0.00022,2]
[312607865,1706071843400,-90.16067622,0.00023,2]
[312607866,1706071843412,-822.29078517,0.00023,2]
[312607867,1706071843445,-1251.92970424,0.00023,2]
[312607868,1706071843457,-1029.01268907,0.00023,2]
[312607869,1706071843471,-7765.283266,0.00023,2]
[312607870,1706071843503,-1085.42,0.00023,2]
[312607871,1706071843568,-1413.81535929,0.00023,2]
[312607872,1706071843580,-1145.80337591,0.00023,2]
[312607883,1706071846448,-18477.72496476,0.00023,2]
[312607885,1706071846463,-6580.64317377,0.00023,2]
[312607887,1706071846473,-1298.658947,0.00023,2]
[312607889,1706071846780,-616.94211156,0.00023,2]
[312607890,1706072026274,314.73,0.00019962,2]
[312607911,1706072495299,298.99,0.0001996,2]
[312607913,1706072639464,-1000.0,0.00021587,2]
[312607914,1706072639483,-926.4658,0.00021588,14]
[312607915,1706072639502,-500.3246058,0.00021689,2]
[312607916,1706072639521,-582.56,0.00021877,2]
[312607917,1706072639545,-474.29,0.00021879,2]
[312607918,1706072639564,-314.71,0.00021879,2]
[312607919,1706072639585,-798.91,0.0002188,2]
[312607920,1706072639604,-205.83214282,0.000219,2]
[312607921,1706072639624,-250.0,0.00021918,2]
[312607922,1706072639644,-154.25,0.00022041,2]
[312607923,1706072639665,-150.0,0.00022223,2]
[312607924,1706072639685,-298.99,0.00022224,2]
[312607925,1706072639704,-343.66745138,0.00022224,2]
[312607930,1706073000983,269.09,0.00019956,2]
[312607934,1706073031537,-1000.0,0.00021766,2]
[312607935,1706073031547,-69.58567382,0.00021767,2]
[312607936,1706073031559,-378.0424791,0.00021767,2]
[312607937,1706073031569,-820.03,0.00021867,2]
[312607938,1706073031578,-157.35,0.00021867,2]
[312607939,1706073031588,-1000.0,0.0002188,2]
[312607940,1706073031598,-665.75,0.00021882,2]
[312607941,1706073031607,-41.27280628,0.00021918,2]
[312607942,1706073031619,-208.72719372,0.00021918,2]
[312607943,1706073031629,-154.25,0.00022042,2]
[312607944,1706073031639,-269.09,0.0002222,2]
[312607945,1706073031650,-447.62815292,0.00022251,2]
[312607946,1706073031660,-156.14787353,0.00022626,2]
[312607947,1706073031670,-150.0,0.00022726,2]
[312607948,1706073031680,-150.0,0.00022727,2]
[312607949,1706073031690,-273.67019464,0.00022727,2]
[312607950,1706073031751,-446.48737761,0.00022727,2]
[312607951,1706073031764,-435.79844913,0.00022727,2]
[312607952,1706073031777,-2177.40397862,0.00022727,2]
[312607953,1706073031787,-150.0,0.00022733,2]
[312607954,1706073031797,-150.0,0.00022734,2]
[312607955,1706073031806,-447.62815292,0.00022734,2]
[312607958,1706073031816,-150.0,0.00022735,2]
[312607960,1706073031825,-150.0,0.00022738,2]
[312607963,1706073031835,-150.0,0.00022738,2]
[312607965,1706073031844,-150.0,0.0002274,2]
[312607966,1706073031853,-150.0,0.0002274,2]
[312607967,1706073031863,-150.0,0.00022741,2]
[312607968,1706073031872,-150.0,0.0002275,2]
[312607969,1706073031882,-153.04098467,0.0002275,2]
[312607970,1706073031892,-150.0,0.00022759,2]
[312607971,1706073031901,-150.0,0.00022762,2]
[312607972,1706073031911,-150.0,0.00022767,2]
[312607973,1706073031923,-150.0,0.0002277,2]
[312607974,1706073031934,-150.0,0.0002277,2]
[312607975,1706073031943,-150.0,0.00022771,2]
[312607976,1706073031952,-150.0,0.00022771,2]
[312607977,1706073031962,-150.0,0.00022774,2]
[312607978,1706073031972,-150.0,0.0002278,2]
[312607979,1706073031982,-150.0,0.00022788,2]
[312607980,1706073031991,-150.0,0.00022788,2]
[312607981,1706073032001,-150.0,0.00022798,2]
[312607982,1706073032011,-299.04818068,0.00022802,2]
[312607983,1706073032022,-150.0,0.00022806,2]
[312607984,1706073032032,-150.0,0.00022808,2]
[312607985,1706073032041,-150.0,0.00022814,2]
[312607986,1706073032051,-150.0,0.00022815,2]
[312607987,1706073032060,-500.0,0.00022816,2]
[312607988,1706073032071,-200.0,0.00022816,2]
[312607989,1706073032080,-200.0,0.00022816,2]
[312607990,1706073032090,-800.0,0.00022816,2]
[312607991,1706073032099,-150.0,0.00022819,2]
[312607992,1706073032110,-150.0,0.0002282,2]
[312607993,1706073032119,-150.0,0.00022824,2]
[312607994,1706073032129,-150.0,0.0002283,2]
[312607995,1706073032138,-150.0,0.00022832,2]
[312607996,1706073032148,-150.0,0.00022834,2]
[312607997,1706073032157,-150.0,0.00022836,2]
[312607998,1706073032166,-150.0,0.00022837,2]
[312607999,1706073032177,-210.0,0.00022839,2]
[312608000,1706073032186,-150.0,0.00022845,2]
[312608001,1706073032195,-150.0,0.00022846,2]
[312608002,1706073032205,-150.0,0.00022846,2]
[312608003,1706073032214,-150.0,0.00022856,2]
[312608004,1706073032224,-150.0,0.00022857,2]
[312608005,1706073032233,-150.0,0.00022864,2]
[312608006,1706073032243,-150.0,0.00022866,2]
[312608007,1706073032253,-150.0,0.00022867,2]
[312608008,1706073032263,-150.0,0.00022869,2]
[312608009,1706073032272,-150.0,0.00022869,2]
[312608010,1706073032282,-150.0,0.0002287,2]
[312608011,1706073032291,-150.0,0.00022874,2]
[312608012,1706073032301,-150.0,0.00022884,2]
[312608013,1706073032310,-150.0,0.00022888,2]
[312608014,1706073032319,-150.0,0.00022889,2]
[312608015,1706073032329,-150.0,0.00022895,2]
[312608016,1706073032339,-2064.7387,0.000229,2]
[312608017,1706073032349,-4529.5142,0.000229,2]
[312608018,1706073032358,-150.0,0.000229,2]
[312608019,1706073032367,-178.03401367,0.000229,2]
[312608020,1706073032377,-151.68051717,0.000229,2]
[312608021,1706073032386,-913.11738384,0.000229,2]
[312608022,1706073032396,-323.26037188,0.000229,2]
[312608023,1706073032405,-171.01455326,0.000229,2]
[312608024,1706073032415,-2878.69018918,0.000229,2]
[312608025,1706073032424,-150.0,0.00022909,2]
[312608026,1706073032434,-150.0,0.00022914,2]
[312608027,1706073032443,-150.0,0.00022918,2]
[312608028,1706073032453,-150.0,0.0002292,2]
[312608029,1706073032463,-1500.0,0.00022921,2]
[312608030,1706073032472,-150.0,0.00022927,2]
[312608031,1706073032482,-150.0,0.00022927,2]
[312608032,1706073032491,-150.0,0.00022928,2]
[312608033,1706073032501,-300.0,0.0002293,2]
[312608034,1706073032510,-150.0,0.00022934,2]
[312608035,1706073032519,-150.0,0.00022938,2]
[312608036,1706073032529,-150.0,0.00022945,2]
[312608037,1706073032538,-150.0,0.00022951,2]
[312608038,1706073032548,-150.0,0.00022956,2]
[312608039,1706073032557,-150.0,0.00022959,2]
[312608040,1706073032566,-866.84550851,0.0002296,3]
[312608041,1706073032576,-820.03,0.0002296,2]
[312608042,1706073032585,-150.0,0.00022961,2]
[312608043,1706073032594,-150.0,0.00022963,2]
[312608044,1706073032604,-150.0,0.00022963,2]
[312608045,1706073032613,-150.0,0.00022966,2]
[312608046,1706073032623,-150.0,0.00022967,2]
[312608047,1706073032633,-150.0,0.0002297,2]
[312608048,1706073032643,-150.0,0.00022971,2]
[312608049,1706073032653,-150.0,0.00022972,2]
[312608050,1706073032662,-150.0,0.00022979,2]
[312608051,1706073032672,-150.0,0.00022981,2]
[312608052,1706073032681,-150.0,0.00022985,2]
[312608053,1706073032693,-150.0,0.00022995,2]
[312608054,1706073032703,-174.83700953,0.00022996,2]
[312608055,1706073032713,-4655.74947603,0.00022996,2]
[312608056,1706073032722,-15892.69117696,0.00022998,2]
[312608060,1706073038237,-150.0,0.00022485,2]
[312608061,1706073038247,-3124.83783369,0.00022998,2]
[312608062,1706073038258,-1789.57980403,0.00022998,2]
[312608063,1706073038293,-4789.6229253,0.00022998,2]
[312608064,1706073038303,-348.69020711,0.00022998,2]
[312608065,1706073038313,-2539.57707093,0.00022998,2]
[312608066,1706073038349,-643.1294748,0.00022998,2]
[312608067,1706073038457,-10710.6211417,0.00022998,2]
[312608068,1706073038469,-16739.80237847,0.00022998,2]
[312608069,1706073038480,-904.40561789,0.00022999,2]
[312608070,1706073038490,-312.45853588,0.00022999,2]
[312608071,1706073038499,-427.62008455,0.00022999,10]
[312608072,1706073038508,-154.53496068,0.00022999,2]
[312608073,1706073038519,-150.0,0.00022999,2]
[312608074,1706073038529,-2405.37481956,0.00023,3]
[312608075,1706073038538,-1110.06047736,0.00023,2]
[312608077,1706073038702,-529.05901152,0.00023,2]
[312608082,1706073038780,-1091.0594006,0.00023,2]
[312608083,1706073038792,-716.79,0.00023,2]
[312608085,1706073040018,-2799.18,0.00023,2]
[312608086,1706073040697,-272.65594049,0.00023,2]
[312608087,1706073040753,-510.13070881,0.00023,2]
[312608088,1706073040766,-299.1128838,0.00023,2]
[312608089,1706073040861,-251.63795836,0.00023,2]
[312608090,1706073040873,-463.78156833,0.00023,2]
[312608094,1706073042910,-1000.0,0.00022999,2]
[312608095,1706073042929,-607.72360726,0.00023,2]
[312608096,1706073042985,-2105.55,0.00023,2]
[312608097,1706073043013,-541.94845062,0.00023,2]
[312608098,1706073043042,-500.0,0.00023,2]
[312608112,1706073045590,-592.97801893,0.00023,2]
[312608118,1706073045651,-1239.75904694,0.00023,2]
[312608119,1706073045701,-302.03380715,0.00023,2]
[312608120,1706073045937,-17215.34265634,0.00023,2]
[312608159,1706073491955,267.51,0.00019822,2]
[312608160,1706073573936,210.0,0.00020839,2]
[312608161,1706073933950,254.13,0.00019914,2]
[312608168,1706074231731,-1000.0,0.00021524,2]
[312608169,1706074231741,-995.3828,0.00021525,2]
[312608170,1706074231887,-280.0,0.00021525,2]
[312608171,1706074231899,-1024.34354417,0.00021525,2]
[312608172,1706074231948,-552.01738629,0.00021525,2]
[312608173,1706074231960,-1425.86591214,0.00021525,2]
[312608174,1706074231970,-159.0399871,0.00021627,2]
[312608175,1706074231980,-748.89,0.0002171,2]
[312608176,1706074231990,-237.36731461,0.00021725,2]
[312608177,1706074232003,-496.63268539,0.00021725,2]
[312608178,1706074232013,-194.08,0.0002173,2]
[312608179,1706074232025,-1452.38088315,0.00021753,2]
[312608180,1706074232035,-216.35,0.00021753,2]
[312608181,1706074232046,-800.0,0.00021758,2]
[312608182,1706074232057,-490.68,0.00021832,2]
[312608183,1706074232066,-200.0,0.00021881,2]
[312608184,1706074232076,-150.0,0.00021892,2]
[312608185,1706074232085,-492.01,0.00021894,2]
[312608186,1706074232095,-205.63566735,0.000219,2]
[312608187,1706074232104,-205.63566735,0.000219,2]
[312608188,1706074232113,-250.0,0.00021918,2]
[312608189,1706074232123,-254.13,0.00022178,2]
[312608190,1706074232133,-150.0,0.00022733,2]
[312608191,1706074232142,-150.0,0.00022735,2]
[312608192,1706074232151,-598.1247,0.0002274,2]
[312608193,1706074232160,-150.0,0.00022742,2]
[312608194,1706074232170,-3799.34039675,0.0002275,2]
[312608195,1706074232244,-2159.6985607,0.0002275,2]
[312608198,1706074237737,-123561.4282547,0.0002275,2]
[312608199,1706074237747,-150.0,0.00022752,2]
[312608200,1706074237756,-150.0,0.00022773,2]
[312608201,1706074237765,-22248.80639117,0.00022781,2]
[312608202,1706074237774,-150.0,0.00022783,2]
[312608203,1706074237784,-150.0,0.00022791,2]
[312608204,1706074237793,-150.0,0.00022797,2]
[312608205,1706074237802,-178.03401367,0.000228,2]
[312608206,1706074237811,-150.0,0.00022804,2]
[312608207,1706074237820,-150.0,0.00022813,2]
[312608208,1706074237829,-500.0,0.00022816,2]
[312608209,1706074237838,-200.0,0.00022816,2]
[312608210,1706074237847,-800.0,0.00022816,2]
[312608211,1706074237856,-200.0,0.00022816,2]
[312608212,1706074237865,-150.0,0.00022819,2]
[312608213,1706074237883,-150.0,0.00022822,2]
[312608214,1706074237892,-150.0,0.00022835,2]
[312608215,1706074237901,-150.0,0.0002284,2]
[312608216,1706074237910,-150.0,0.00022847,2]
[312608217,1706074237919,-150.0,0.00022863,2]
[312608218,1706074237929,-150.0,0.00022873,2]
[312608219,1706074237938,-281.6008057,0.00022884,2]
[312608220,1706074237947,-150.0,0.00022886,2]
[312608221,1706074237956,-150.0,0.00022888,2]
[312608222,1706074237965,-226.69261519,0.0002289,2]
[312608223,1706074237974,-150.0,0.00022896,2]
[312608224,1706074237984,-150.0,0.00022898,2]
[312608225,1706074237993,-500.0,0.000229,2]
[312608226,1706074238003,-4842.99646699,0.000229,2]
[312608227,1706074238013,-2040.221,0.000229,2]
[312608228,1706074238024,-1349.3539,0.000229,2]
[312608229,1706074238033,-2380.6983,0.000229,2]
[312608230,1706074238044,-837.14,0.000229,2]
[312608231,1706074238055,-204686.58417421,0.000229,2]
[312608232,1706074238068,-627.74018004,0.000229,2]
[312608233,1706074238080,-870.02537706,0.000229,2]
[312608234,1706074238405,-4887.83082478,0.000229,2]
[312608235,1706074238417,-4906.23264509,0.000229,2]
[312608236,1706074238443,-4698.0312328,0.000229,2]
[312608237,1706074238455,-22321.59631398,0.000229,2]
[312608238,1706074238468,-2679.17610788,0.000229,2]
[312608239,1706074238504,-51562.29982033,0.000229,2]
[312608240,1706074238516,-423.356324,0.000229,2]
[312608241,1706074238527,-445.94319877,0.000229,2]
[312608243,1706074240179,-9635.99999998,0.000229,2]
[312608244,1706074240732,-198547.05821193,0.000229,2]
[312608245,1706074240742,-5000.0,0.000229,2]
[312608246,1706074240751,-159.0399871,0.000229,2]
[312608247,1706074240761,-608.74492256,0.000229,2]
[312608248,1706074240772,-150.0,0.00022901,2]
[312608249,1706074240781,-150.0,0.00022907,2]
[312608250,1706074240791,-150.0,0.00022919,2]
[312608251,1706074240800,-490.68,0.00022924,2]